Cogmind - Beta 16 @@@ ROGUE MODE // 2026.02.03 @ 17:24:05 Player: eb Result: Destroyed by NV-7UJ(R) with Subdweller Laser Performance ------------- Evolutions (0) 0 Regions Visited (2) 400 Robots Destroyed (14) 70 Value Destroyed (505) 505 Prototype IDs (0) 0 Alien Tech Used (0) 0 Bonus (0) 0 TOTAL SCORE: 975 Bonus ------- None Cogmind --------- Core Integrity 0/250 Matter 290/300 Energy 193/200 System Corruption 0% Temperature Cool (6) Movement Rolling (110) Location -10/Subcaves Parts ------- > --- POWER (1) -------- Subdweller Power Source > --- PROPULSION (2) --- Subdweller Monowheel Subdweller Monowheel > --- UTILITY (2) ------ Small Storage Unit Signal Interpreter > --- WEAPON (2) ------- Barrage Gun Makeshift Hammer > --- INVENTORY (8) ---- Makeshift Leg Improved Heat Sink Sensor Array Makeshift Light Armor Plating Subdweller Laser Subdweller Shrapnel Launcher Makeshift Axe Peak State ------------ > --- POWER ------------ Subdweller Power Source > --- PROPULSION ------- Subdweller Monowheel Subdweller Monowheel > --- UTILITY ---------- Small Storage Unit Signal Interpreter > --- WEAPON ----------- Slug Cannon Makeshift Hammer > --- INVENTORY -------- Makeshift Leg Improved Heat Sink Sensor Array Makeshift Light Armor Plating Subdweller Laser Subdweller Machine Gun Subdweller Shrapnel Launcher Makeshift Axe [Rating: 18] Favorites ----------- Power Light Ion Engine Engine Light Ion Engine Propulsion Subdweller Monowheel Treads Light Treads Leg Aluminum Leg Wheel Subdweller Monowheel Utility Small Storage Unit Device Improved Heat Sink Storage Small Storage Unit Processor Signal Interpreter Weapon Medium Laser Energy Gun Medium Laser Ballistic Gun Subdweller Machine Gun Ballistic Cannon Slug Cannon Special Weapon Mining Laser Impact Weapon Makeshift Hammer Build | -11 -10 -10 ------- Run | Yrd Mat Sub Slots Evolved . | . . . Power . | . . . Propulsion . | . . . Utility . | . . . Weapon . | . . . Parts Attached 29 | 6 7 16 Power 5 | 1 . 4 Engine 5 | 1 . 4 Core . | . . . Reactor . | . . . Propulsion 9 | 2 2 5 Treads 2 | 2 . . Leg 2 | . 2 . Wheel 5 | . . 5 Hover . | . . . Flight . | . . . Utility 4 | 1 3 . Device 2 | . 2 . Storage 1 | 1 . . Processor 1 | . 1 . Hackware . | . . . Protection . | . . . Artifact . | . . . Weapon 11 | 2 2 7 Energy Gun 3 | 2 . 1 Energy Cannon . | . . . Ballistic Gun 4 | . 1 3 Ballistic Cannon 2 | . . 2 Launcher . | . . . Special Weapon 1 | . 1 . Impact Weapon 1 | . . 1 Slashing Weapon . | . . . Piercing Weapon . | . . . Special Melee Weapon . | . . . Unidentified Prototypes . | . . . Parts Lost 2 | . . 2 Power 1 | . . 1 Propulsion . | . . . Utility . | . . . Weapon 1 | . . 1 Highest Loss Streak 1 | . . 1 To Critical Strikes . | . . . Average Backups 6 | 3 7 6 Power . | . 1 . Propulsion 1 | 2 2 . Utility 2 | . . 2 Weapon 2 | . 2 2 Tool/Special . | . . . Unused Backups 13 | . 6 7 Power . | . . . Propulsion 3 | . 2 1 Utility 3 | . 1 2 Weapon 6 | . 2 4 Tool/Special 1 | . 1 . Average Slot Usage (%) 96 | . 92 97 Engine 13 | . 14 12 Treads 6 | . 28 . Wheel 19 | . . 25 Device 4 | . 5 4 Storage 10 | . 14 9 Processor 11 | . 1 14 Energy Gun 7 | . 15 5 Ballistic Gun 7 | . 7 7 Ballistic Cannon 6 | . . 8 Special Weapon 2 | . 5 1 Impact Weapon 4 | . . 5 Peak Build Rating 18 | 6 9 18 Average Rating 12 | 5 6 14 On Entrance 5 | . 6 9 Avg Prop Armor Cover (%) 6 | . . 6 Naked Turns . | . . . Heaviest Build 20 | 12 13 20 Greatest Support 40 | 40 40 40 Greatest Overweight (x) . | . . . Average Overweight (x) . | . . . Largest Inventory Capacity 8 | 8 8 8 Average Capacity 7 | 6 7 7 Most Carried 8 | 6 8 8 Average Carried 6 | 3 7 6 Final Capacity 8 | 8 5 8 Final Carried 7 | 6 5 7 Class Distribution -------------------- 63% | Mutant 36% | Scavenger-Mutant Dominant Class ---------------- Mutant | -10/Materials Scavenger-Mutant | -10/Subcaves Resources | -11 -10 -10 ----------- Run | Yrd Mat Sub Matter Collected 763 | 260 92 411 Remotely 62 | . 62 . Salvage Created 481 | . 241 240 Parts 26 | . 11 15 Haulers Intercepted 1 | . 1 . Recyclers Shooed . | . . . Parts Field Recycled . | . . . Retrieved Matter . | . . . Parts Self-Destructed 4 | . . 4 Prevented . | . . . Parts Restored . | . . . Kills | -11 -10 -10 ------- Run | Yrd Mat Sub Combat Hostiles Destroyed 13 | . 5 8 Melee 2 | . . 2 Guns 7 | . 5 2 Cannons 3 | . . 3 Classes Destroyed 3 | . 2 1 Hauler 1 | . 1 . Grunt 5 | . 5 . Subdweller 8 | . . 8 Best Kill Streak 3 | . 3 3 Combat Bots Only 3 | . 3 3 Max Kills in Single Turn 1 | . 1 1 Gunslinging . | . . . Exploded . | . . . Melee 1 | . . 1 Uniques/NPCs Destroyed . | . . . Combat | -11 -10 -10 -------- Run | Yrd Mat Sub Hostile Shots Fired 66 | . 31 35 Missed 14 | . 7 7 Hits 52 | . 24 28 Projectile 52 | . 24 28 Damage Taken 889 | . 268 621 Core 253 | . 53 200 Absorbed by Shields . | . . . Core Remaining (%) 100 | 100 . . Volleys Fired 71 | . 29 42 Largest 2 | . 2 2 Hottest 150 | . 120 150 Shots Fired 102 | . 44 58 Gun 71 | . 43 28 Cannon 26 | . . 26 Launcher . | . . . Special 5 | . 1 4 Kinetic 42 | . 14 28 Thermal 60 | . 30 30 Explosive . | . . . Electromagnetic . | . . . Robot Hit Streak 8 | . 7 8 Robot Miss Streak 3 | . 2 3 Penetration Max . | . . . Secondary Targets 2 | . 2 . Max Gunslinging Chain 1 | . 1 . Shots Hit Robots 64 | . 31 33 Core Hits 22 | . 12 10 Critical Kills 1 | . . 1 Critical Parts Destroyed 3 | . . 3 Critical Strikes 6 | . 2 4 Burn 2 | . 2 . Smash 4 | . . 4 Melee Attacks 14 | . . 14 Impact 14 | . . 14 Slashing . | . . . Piercing . | . . . Sneak Attacks . | . . . Combat Hostiles . | . . . Follow-up Attacks . | . . . Damage Inflicted 1277 | 2 400 875 Guns 501 | . 400 101 Cannons 300 | . . 300 Explosions . | . . . Melee 474 | . . 474 Ramming 2 | 2 . . Kinetic 463 | . 147 316 Thermal 338 | . 253 85 Explosive . | . . . Electromagnetic . | . . . Impact 474 | . . 474 Slashing . | . . . Piercing . | . . . Highest Corruption . | . . . Average Corruption . | . . . Corruption Purged . | . . . Corruption Blocked . | . . . Overload Shots . | . . . Overflow Damage 203 | . . 203 Projectiles . | . . . Explosions . | . . . Melee 203 | . . 203 Knockbacks 8 | . . 8 Impact 6 | . . 6 Kinetic 2 | . . 2 Secondary . | . . . Self-Inflicted Damage . | . . . Shots . | . . . Rammed 1 | 1 . . Targets Rammed 1 | 1 . . Kicked . | . . . Crushed . | . . . Highest Temperature 402 | . 402 . Average Temperature 159 | . 159 . Received Heat Transfer 222 | . 150 72 Effects 3 | . 3 . Shutdowns 1 | . 1 . Energy Bleed 1 | . 1 . Interference 1 | . 1 . Siege Activations . | . . . Martial Activations . | . . . Shielding Activations . | . . . Robots Disrupted . | . . . Combat Hostiles . | . . . Robots Corrupted 1 | . . 1 Combat Hostiles 1 | . . 1 Parts Fried . | . . . Impact Corruptions 4 | . . 4 Robots Melted . | . . . Combat Hostiles . | . . . Parts Melted 4 | . 4 . Heat Transferred 1098 | . 888 210 Parts Sabotaged . | . . . Parts Stolen . | . . . Parts Stripped . | . . . Power Chain Reactions . | . . . Alert | -11 -10 -10 ------- Run | Yrd Mat Sub Maximum Alert Level . | . . . Low Security (%) 100 | 100 100 . Level 1 . | . . . Level 2 . | . . . Level 3 . | . . . Level 4 . | . . . Level 5 . | . . . High Security . | . . . Max Security . | . . . Peak Influence 60 | . 60 . Initial . | . . . Average 10 | . 13 . Influence Increases 128 | . 128 . Destroy 0b10 Robot/C 100 | . 100 . Destroy 0b10 Robot/NC 5 | . 5 . Destroy Leader 22 | . 22 . Destroy Structure 1 | . 1 . Influence Decreases 128 | . 110 18 Entered New Map 10 | . . 10 Time Decay 118 | . 110 8 Squads Dispatched 1 | . 1 . Investigation 1 | . 1 . Extermination . | . . . Reinforcement . | . . . Assault . | . . . Garrison . | . . . Intercept . | . . . Searches Triggered . | . . . Construction Impeded . | . . . Haulers Reinforced . | . . . Active Scanning Responses . | . . . Cargo Convoy Interrupts . | . . . Stealth | -11 -10 -10 --------- Run | Yrd Mat Sub Distress Signals . | . . . Communications Jammed . | . . . Distress Signals . | . . . Times Spotted 18 | . 5 13 Peak Tracking Total 3 | . 3 2 Tactical Retreats 2 | . . 2 Traps | -11 -10 -10 ------- Run | Yrd Mat Sub Traps Triggered 2 | . 1 1 Indirectly . | . . . Trap Hack Attempts . | . . . Triggered . | . . . Disarmed . | . . . Reprogrammed . | . . . Reused . | . . . Traps Extracted . | . . . Installed . | . . . Triggered . | . . . Machines | -11 -10 -10 ---------- Run | Yrd Mat Sub Machines Disabled . | . . . Max in Single Turn . | . . . Machines Repaired . | . . . Machines Dismantled . | . . . Machines Sabotaged . | . . . Overloaded Fab Kills . | . . . Hacking | -11 -10 -10 --------- Run | Yrd Mat Sub Machines Accessed 2 | . 1 1 Terminals 1 | . 1 . Fabricators . | . . . Repair Stations . | . . . Recycling Units . | . . . Scanalyzers . | . . . Garrison Access . | . . . Total Hacks 7 | . 3 4 Successful 4 | . . 4 Failed 3 | . 3 . Catastrophic . | . . . Database Lockouts . | . . . Manual 1 | . . 1 Terminals 3 | . 3 . Fabricators . | . . . Repair Stations . | . . . Recycling Units . | . . . Scanalyzers . | . . . Garrison Access . | . . . Terminal Hacks 4 | . . 4 Record 4 | . . 4 Fabricator Hacks . | . . . Repair Station Hacks . | . . . Recycling Unit Hacks . | . . . Scanalyzer . | . . . Garrison Access Hacks . | . . . Unauthorized Hacks . | . . . Terminals . | . . . Fabricators . | . . . Repair Stations . | . . . Recycling Units . | . . . Scanalyzers . | . . . Garrison Access . | . . . Data Cores Recovered . | . . . Used . | . . . Hacking Detections 1 | . 1 . Full Trace Events . | . . . Feedback Events . | . . . Feedback Blocked . | . . . Robot Schematics Acquired . | . . . Robots Built . | . . . Authchips . | . . . Time . | . . . Total Robot Build Rating . | . . . Part Schematics Acquired . | . . . Parts Built . | . . . Authchips . | . . . Time . | . . . Total Part Build Rating . | . . . Part Studies Acquired . | . . . Parts Repaired . | . . . Time . | . . . Parts Recycled . | . . . Recycled Matter . | . . . Retrieved Matter . | . . . Retrieved Components . | . . . Parts Scanalyzed . | . . . Part Schematics Acquired . | . . . Parts Damaged . | . . . Bothacking | -11 -10 -10 ------------ Run | Yrd Mat Sub Used RIF Installer . | . . . Robots Hacked . | . . . Non-combat . | . . . Combat . | . . . Robot Hacks Applied . | . . . Relay Couplers Released . | . . . Fabnet Peak Effective % . | . . . Robots Rewired . | . . . Allies Hacked . | . . . Hacks Repelled . | . . . Allies | -11 -10 -10 -------- Run | Yrd Mat Sub Total Allies . | . . . Largest Group . | . . . Highest-Rated Group . | . . . Highest-Rated Ally . | . . . Total Orders . | . . . Ally Attacks . | . . . Total Damage . | . . . Kills . | . . . Allies Corrupted . | . . . Allies Melted . | . . . Intel | -11 -10 -10 ------- Run | Yrd Mat Sub Active Infowar (turns) . | . . . Robot Analysis Total . | . . . Derelict Logs Recovered 1 | . . 1 Drone Launches . | . . . Drone Recoveries . | . . . Exploration | -11 -10 -10 ------------- Run | Yrd Mat Sub Turns Passed 2349 | 108 517 1724 Spaces Moved 1658 | 57 254 1347 Core 5 | 5 . . Treads 305 | 52 253 . Legs 31 | . 1 30 Wheels 1317 | . . 1317 Hover . | . . . Flight . | . . . Fastest Speed 50 | 50 120 110 Average Speed 119 | 150 159 110 Slowest Speed 160 | 160 160 120 Overloaded Moves . | . . . Propulsion Burnouts . | . . . Robots Hopped . | . . . Potential Cave-ins . | . . . Cave-ins Triggered . | . . . Exploration Rate (%) 34 | 5 45 52 Regions Visited 2 Branch Regions 1 Pre-discovered Areas 2 | . . 2 Known Exits Taken 1 | . 1 . Unknown Exits Taken 1 | 1 . . Scrap Searched 5 | . . 5 Spaces Dug . | . . . Terrain Destroyed 10 | . 1 9 Melee . | . . . Projectile 10 | . 1 9 AOE . | . . . Terrain Rammed . | . . . Walls Destroyed . | . . . Machines Disabled . | . . . Actions | -11 -10 -10 --------- Run | Yrd Mat Sub Total 1906 | 76 319 1511 Wait 59 | 7 11 41 Move 1657 | 57 253 1347 Hop . | . . . Pick Up 33 | 6 8 19 Fast Attach 14 | 6 1 7 Attach 2 | . 1 1 Detach . | . . . Swap 23 | . 7 16 Drop 33 | . 9 24 Fire 71 | . 29 42 Melee 14 | . . 14 Ram . | . . . Kick . | . . . Crush . | . . . Escape Stasis . | . . . Rewire . | . . . Trap . | . . . Miscellaneous . | . . . Route ------- -11/Scrapyard -10/Materials (discovered 2 exits: *Min / *Sub) -10/Subcaves (discovered 1 exit: *Mat) History --------- Turn | Location | Event 7 | -11/Scrapyard | Discovered new exit (range 14) 109 | -11/Scrapyard | Entered Materials 300 | -10/Materials | Build established: Mutant 464 | -10/Materials | Discovered new exit (range 12) 588 | -10/Materials | Identified exit to Mines 605 | -10/Materials | Discovered new exit (range 10) 617 | -10/Materials | Identified exit to Subcaves 626 | -10/Materials | Entered Subcaves 627 | -10/Subcaves | Approached by a straggling Scientist 718 | -10/Subcaves | Shifting Twisted Machinery released Flamer 883 | -10/Subcaves | Ambushed by Subdwellers from Twisted Machinery 945 | -10/Subcaves | Build established: Scavenger-Mutant 1250 | -10/Subcaves | Shifting Twisted Machinery released Mak. Light Armor Plating 1276 | -10/Subcaves | Discovered new exit (range 8) 1282 | -10/Subcaves | Identified exit to Materials 1317 | -10/Subcaves | Shifting Twisted Machinery released Flamer 1406 | -10/Subcaves | Visited Clippyterm 1412 | -10/Subcaves | Learned location of Deep Caves (-6) 1412 | -10/Subcaves | Learned Research machine intel 1489 | -10/Subcaves | Build established: Mutant 1549 | -10/Subcaves | Core integrity fell below 50% 1974 | -10/Subcaves | Shifting Twisted Machinery released Barrage Gun 1974 | -10/Subcaves | Shifting Twisted Machinery released Spk. Treads 1994 | -10/Subcaves | Core integrity fell below 20% 2078 | -10/Subcaves | A swath of the cavern ceiling suddenly collapsed 2317 | -10/Subcaves | Build established: Scavenger-Mutant 2350 | -10/Subcaves | Destroyed by NV-7UJ(R) with Subdweller Laser Last Messages --------------- 02005_ Destroyed Sub. Monowheel. 02005_ QJ-RTE(R) system corrupted by crushing effect. 02005_ QJ-RTE(R) knocked back. 02006_ QJ-RTE(R) system terminally corrupted. 02013_ Acquired Sub. Power Source. 02014_ Acquired 10 matter. 02017_ Acquired Sub. Monowheel. 02020_ Acquired 10 matter. 02027_ Dropped Slug Cannon. 02027_ Dropped Sub. Machine Gun. 02027_ Acquired Barrage Gun. 02064_ Acquired 10 matter. A swath of the cavern ceiling suddenly collapses. 02122_ Sub. Power Source shoots sparks and powers down. 02220_ Dropped Broken Sub. Power Source. 02220_ Acquired Sub. Power Source. 02350_ NV-7UJ(R) suffers critical hit (Smash). 02350_ Destroyed Sub. Optics. 02350_ NV-7UJ(R) system corrupted by crushing effect. 02350_ NV-7UJ(R) knocked back. Map ----- +----------------------------------------------------+ | ?????????????????????????????????????????????????? | | ?????????????????????????????????????????????????? | | ?????????????????????????????????????????????????? | | ?????????????????????????????????????????????????? | | ?????????????????????????????????????????????????? | | ?????????????######??????????????????????????????? | | ?????????##### ## ##?????????????????????????????? | | ????????## ######????????????????????????? | | ????????# #????????????????????????? | | ????????### #????????????????????????? | | ??????????#### #### ##???????????????????????? | | ????????????## #??## ###???###???????????????? | | ????????????# ##??## ##?## ##??????????????? | | ????????????# #???## ### #??????????????? | | ????????????## #????# #??????????????? | | ?????????????## ##???## ##?????????????? | | ????????????### ##???## #?????????????? | | ???????????## ##???## #?????????????? | | ???????????# ##???# #?????????????? | | ???????????# #???# ##?????????????? | | ???????????## #??## ##??????????????? | | ????????????## #### ###???????????????? | | ???????????### ### ####??????????????? | | ??????????## R #?## #??????????????? | | #####?????# ##?## ##??????????????? | | #?????# ##@ ##?# #???????????????? | | #??????# ### ### ##???????????????? | | ####??????# ### #?# ####????????????????? | | ???????#### ##?# #### ##?????????????????? | | ##????## #??##### ####??????????????? | | ##???# #????## ##?????????????? | | #???# #####?# #?????????????? | | #???# ### ##### #?????????????? | | #???# ## ##?????????????? | | ##### ### #??????????????? | | ## ##### ### #??????????????? | | # ### ##?## #??????????????? | | * #??###???####??????????????? | | #??????????????????????????? | | ## ##?????????????????????????? | | ## ### #?????????????????????????? | | " ####### ### ##?????????????????????????? | | # " ##?????# ### ##?????????????????????????? | | ##" #??????## #?????????????????????????? | | ?## #???????## # # ##??###????????????????????? | | ??####????????###### #??# ##??????????????????? | | ???????????????????## ##??# #??????????????????? | | ???????? ???????????# #???# ##?????????????????? | | ??????? ??#??????# #???# ##????????????????? | | ??????? # #?#### #???# ###??????????????? | +----------------------------------------------------+ Best States ------------- Heat Dissipation 39 Energy Generation 15 Energy Capacity 200 Matter Stores 300 Matter Capacity 300 Sight Range 16 Terrain Scan Density 10 Evasion (%) 45 Recoil Reduction 2 Item Schematics ----------------- None Robot Schematics ------------------ None Fabricated ------------ Nothing Repaired ---------- Nothing Studied --------- None Alien Tech Used ----------------- None Achievements -------------- None Challenges ------------ None Game ------ Seed MinesnifferRemoteFlightbrick Manual? 0 Play Time 00:28:33 Cumulative 61.7 hours Start 2026.02.03 @ 16:57:53 End 2026.02.03 @ 17:24:05 Sessions 1 Manual Loads 0 Difficulty Rogue Special Mode None Game No. 40 Rogue 40 Adventurer 0 Explorer 0 Win Type - Total 3 Types 3/0/0/0/0/0/0/0/0/0 Lore% 26 Gallery% 39 Achievement% 27 Wizard Run 0 Options --------- Layout 0 ASCII 0 Keyboard 0 Movement Numpad Keybinds 0 Fullscreen 2 Font 24/Terminus Map View 76x50 Zoom Use 0% Tactical HUD 1 Map Filters NONE Filters NONE Steam 1 RUN: f38a9f90-e4da-4301-a93b-25beec9bed4b